Cogmind - Beta 14 *** ADVENTURER MODE // 2024.12.05 @ 19:26:23 Player: Domo Result: Destroyed by G-34 Mercenary with Small Laser Performance ------------- Evolutions (1) 500 Regions Visited (3) 600 Robots Destroyed (32) 160 Value Destroyed (608) 608 Prototype IDs (0) 0 Alien Tech Used (0) 0 Bonus (0) 0 TOTAL SCORE: 1868 Bonus ------- None Cogmind --------- Core Integrity 0/400 Matter 300/300 Energy 100/100 System Corruption 0% Temperature Cool (6) Movement Core (50) Location -9/Materials Parts ------- > --- POWER (1) -------- (None) > --- PROPULSION (2) --- (None) > --- UTILITY (4) ------ (None) > --- WEAPON (2) ------- (None) > --- INVENTORY (5) ---- Heat Sink Utility Shielding Sensor Drone Bay Peak State ------------ > --- POWER ------------ Ion Engine > --- PROPULSION ------- Aluminum Leg Aluminum Leg > --- UTILITY ---------- Medium Matter Pod Improved Terrain Scanner Transport Network Coupler ECM Suite > --- WEAPON ----------- Mining Laser Mining Claw > --- INVENTORY -------- Heat Sink Utility Shielding Sensor Drone Bay [Rating: 12] Favorites ----------- Power Ion Engine Engine Ion Engine Power Core Light Nuclear Core Propulsion Compact Wheel Leg Aluminum Leg Wheel Compact Wheel Utility Medium Matter Pod Device Improved Terrain Scanner Storage Medium Matter Pod Processor Transport Network Coupler Weapon Assault Rifle Ballistic Gun Assault Rifle Special Weapon Mining Laser Slashing Weapon Mining Claw Special Melee Weapon Datajack Build | -11 -10 -10 -9 ------- Run | Yrd Mat Min Mat Slots Evolved 2 | . . . 2 Power . | . . . . Propulsion . | . . . . Utility 2 | . . . 2 Weapon . | . . . . Parts Attached 25 | 10 8 4 3 Power 5 | 1 3 1 . Engine 4 | 1 2 1 . Core 1 | . 1 . . Reactor . | . . . . Propulsion 7 | 4 1 2 . Treads . | . . . . Leg 2 | . . 2 . Wheel 5 | 4 1 . . Hover . | . . . . Flight . | . . . . Utility 8 | 3 2 . 3 Device 4 | 1 1 . 2 Storage 3 | 2 1 . . Processor 1 | . . . 1 Hackware . | . . . . Protection . | . . . . Artifact . | . . . . Weapon 5 | 2 2 1 . Energy Gun . | . . . . Energy Cannon . | . . . . Ballistic Gun 2 | 2 . . . Ballistic Cannon . | . . . . Launcher . | . . . . Special Weapon 1 | . . 1 . Impact Weapon . | . . . . Slashing Weapon 1 | . 1 . . Piercing Weapon . | . . . . Special Melee Weapon 1 | . 1 . . Unidentified Prototypes . | . . . . Parts Lost 8 | . . 2 6 Power 1 | . . . 1 Propulsion 1 | . . 1 . Utility 3 | . . . 3 Weapon 3 | . . 1 2 Highest Loss Streak 6 | . . 1 6 To Critical Strikes . | . . . . Average Slot Usage (%) 93 | . 100 88 81 Engine 8 | . 5 14 8 Core 4 | . 8 . . Leg 6 | . . 12 16 Wheel 18 | . 28 10 . Device 15 | . 14 14 18 Storage 12 | . 13 14 9 Processor 2 | . . . 9 Ballistic Gun 11 | . 19 . . Special Weapon 3 | . . 6 8 Slashing Weapon 6 | . 3 14 9 Special Melee Weapon 2 | . 4 1 . Peak Build Rating 12 | 9 11 10 12 Average Rating 9 | 7 10 8 9 On Entrance 7 | . 9 9 10 Naked Turns 28 | . . . 28 Heaviest Build 14 | 13 12 11 14 Greatest Support 32 | 32 32 32 20 Greatest Overweight (x) 4 | . . 1 4 Average Overweight (x) . | . . . . Largest Inventory Capacity 8 | 8 5 5 5 Average Capacity 5 | 6 5 5 5 Most Carried 5 | 5 5 5 4 Average Carried 2 | . 2 4 3 Final Capacity 5 | 5 5 5 5 Final Carried 5 | . 5 5 3 Class Distribution -------------------- 65% | Scavenger-Mutant 34% | Mutant Dominant Class ---------------- Scavenger-Mutant | -10/Materials Mutant | -10/Mines Scavenger-Mutant | -9/Materials Resources | -11 -10 -10 -9 ----------- Run | Yrd Mat Min Mat Matter Collected 821 | 337 439 45 . Remotely . | . . . . Salvage Created 1020 | 139 665 208 8 Parts 63 | 9 41 12 1 Haulers Intercepted 2 | . 2 . . Recyclers Shooed . | . . . . Parts Field Recycled . | . . . . Retrieved Matter . | . . . . Parts Self-Destructed . | . . . . Prevented . | . . . . Kills | -11 -10 -10 -9 ------- Run | Yrd Mat Min Mat Combat Hostiles Destroyed 15 | . 9 5 1 Melee 7 | . 1 5 1 Guns 8 | . 8 . . Classes Destroyed 9 | 3 4 1 1 Worker 6 | 2 3 1 . Builder 1 | . 1 . . Tunneler 2 | 1 . 1 . Hauler 2 | . 2 . . Recycler 2 | 1 . 1 . Watcher 4 | . 3 . 1 Swarmer 3 | . . 3 . Grunt 11 | . 9 2 . Duelist 1 | . . . 1 Best Kill Streak 7 | 2 7 3 1 Combat Bots Only 3 | . 2 3 1 Max Kills in Single Turn 2 | 1 2 1 1 Gunslinging . | . . . . Exploded . | . . . . Melee 1 | . 1 1 1 Uniques/NPCs Destroyed . | . . . . Combat | -11 -10 -10 -9 -------- Run | Yrd Mat Min Mat Hostile Shots Fired 160 | . 35 33 92 Missed 41 | . 13 10 18 Damage Taken 1119 | . 208 189 722 Core 508 | . 31 73 404 Absorbed by Shields 35 | . . . 35 Ignored by Resistances 343 | . 62 60 221 Core Remaining (%) 79 | 100 . 58 . Volleys Fired 57 | 10 41 2 4 Largest 2 | 2 2 1 1 Hottest 100 | 40 40 100 100 Shots Fired 108 | 20 82 2 4 Gun 102 | 20 82 . . Cannon . | . . . . Launcher . | . . . . Special 6 | . . 2 4 Kinetic 102 | 20 82 . . Thermal 6 | . . 2 4 Explosive . | . . . . Electromagnetic . | . . . . Robot Hit Streak 25 | 8 25 7 8 Robot Miss Streak 3 | 1 3 . 1 Penetration Max . | . . . . Secondary Targets 1 | . 1 . . Max Gunslinging Chain 1 | . 1 . . Shots Hit Robots 99 | 15 61 15 8 Core Hits 44 | 5 26 9 4 Critical Kills 1 | . 1 . . Critical Parts Destroyed . | . . . . Critical Strikes 1 | . 1 . . Destroy 1 | . 1 . . Melee Attacks 26 | . 5 16 5 Impact . | . . . . Slashing 26 | . 5 16 5 Piercing . | . . . . Sneak Attacks 5 | . 2 3 . Combat Hostiles . | . . . . Follow-up Attacks . | . . . . Damage Inflicted 1741 | 198 939 429 175 Guns 966 | 198 768 . . Cannons . | . . . . Explosions . | . . . . Melee 648 | . 171 381 96 Ramming 7 | . . . 7 Kinetic 966 | 198 768 . . Thermal 120 | . . 48 72 Explosive . | . . . . Electromagnetic . | . . . . Impact . | . . . . Slashing 648 | . 171 381 96 Piercing . | . . . . Highest Corruption . | . . . . Average Corruption . | . . . . Corruption Purged . | . . . . Corruption Blocked . | . . . . Overload Shots . | . . . . Overflow Damage 23 | . 12 11 . Projectiles . | . . . . Explosions . | . . . . Melee 23 | . 12 11 . Knockbacks . | . . . . Impact . | . . . . Kinetic . | . . . . Secondary . | . . . . Self-Inflicted Damage 3 | . . . 3 Shots . | . . . . Rammed 1 | . . . 1 Targets Rammed 1 | . . . 1 Kicked . | . . . . Crushed . | . . . . Highest Temperature 58 | . 8 20 58 Average Temperature 12 | . 2 10 22 Received Heat Transfer 616 | . 150 90 376 Siege Activations . | . . . . Robots Corrupted . | . . . . Combat Hostiles . | . . . . Parts Fried . | . . . . Impact Corruptions . | . . . . Robots Melted . | . . . . Combat Hostiles . | . . . . Parts Melted 1 | . . . 1 Heat Transferred 250 | . . 100 150 Parts Sabotaged . | . . . . Parts Stolen . | . . . . Parts Stripped . | . . . . Power Chain Reactions . | . . . . Alert | -11 -10 -10 -9 ------- Run | Yrd Mat Min Mat Peak Influence 279 | 20 279 150 102 Initial 49 | . 11 35 49 Average 99 | 9 118 123 80 Maximum Alert Level 1 | . 1 . . Low Security (%) 90 | 100 80 100 100 Level 1 9 | . 19 . . Level 2 . | . . . . Level 3 . | . . . . Level 4 . | . . . . Level 5 . | . . . . High Security . | . . . . Max Security . | . . . . Squads Dispatched 1 | . . . 1 Investigation . | . . . . Extermination . | . . . . Reinforcement 1 | . . . 1 Assault . | . . . . Garrison . | . . . . Intercept . | . . . . Searches Triggered . | . . . . Construction Impeded . | . . . . Haulers Reinforced . | . . . . Active Scanning Responses . | . . . . Cargo Convoy Interrupts . | . . . . Stealth | -11 -10 -10 -9 --------- Run | Yrd Mat Min Mat Distress Signals 1 | . 1 . . Communications Jammed . | . . . . Distress Signals . | . . . . Times Spotted 30 | . 14 5 11 Peak Tracking Total 5 | . 3 3 5 Tactical Retreats 1 | . 1 . . Traps | -11 -10 -10 -9 ------- Run | Yrd Mat Min Mat Traps Triggered . | . . . . Indirectly . | . . . . Trap Hack Attempts . | . . . . Triggered . | . . . . Disarmed . | . . . . Reprogrammed . | . . . . Reused . | . . . . Traps Extracted . | . . . . Installed . | . . . . Triggered . | . . . . Machines | -11 -10 -10 -9 ---------- Run | Yrd Mat Min Mat Machines Disabled . | . . . . Max in Single Turn . | . . . . Machines Repaired . | . . . . Machines Dismantled . | . . . . Machines Sabotaged . | . . . . Overloaded Fab Kills . | . . . . Hacking | -11 -10 -10 -9 --------- Run | Yrd Mat Min Mat Machines Accessed 6 | . 5 1 . Terminals 4 | . 4 . . Fabricators . | . . . . Repair Stations . | . . . . Recycling Units 1 | . 1 . . Scanalyzers . | . . . . Garrison Access . | . . . . Total Hacks 12 | . 11 1 . Successful 5 | . 4 1 . Failed 7 | . 7 . . Catastrophic . | . . . . Database Lockouts . | . . . . Manual 6 | . 6 . . Terminals 10 | . 10 . . Fabricators . | . . . . Repair Stations . | . . . . Recycling Units 1 | . 1 . . Scanalyzers . | . . . . Garrison Access . | . . . . Terminal Hacks 4 | . 3 1 . Robot Analysis 1 | . 1 . . Open Door 1 | . . 1 . Dispatch Records 1 | . 1 . . Hauler Manifests 1 | . 1 . . Fabricator Hacks . | . . . . Repair Station Hacks . | . . . . Recycling Unit Hacks 1 | . 1 . . Process 1 | . 1 . . Scanalyzer . | . . . . Garrison Access Hacks . | . . . . Unauthorized Hacks . | . . . . Terminals . | . . . . Fabricators . | . . . . Repair Stations . | . . . . Recycling Units . | . . . . Scanalyzers . | . . . . Garrison Access . | . . . . Data Cores Recovered . | . . . . Used . | . . . . Hacking Detections 5 | . 5 . . Full Trace Events 1 | . 1 . . Feedback Events . | . . . . Feedback Blocked . | . . . . Robot Schematics Acquired . | . . . . Robots Built . | . . . . Authchips . | . . . . Time . | . . . . Total Robot Build Rating . | . . . . Part Schematics Acquired . | . . . . Parts Built . | . . . . Authchips . | . . . . Time . | . . . . Total Part Build Rating . | . . . . Parts Repaired . | . . . . Time . | . . . . Parts Recycled . | . . . . Recycled Matter 13 | . 13 . . Retrieved Matter . | . . . . Retrieved Components . | . . . . Parts Scanalyzed . | . . . . Part Schematics Acquired . | . . . . Parts Damaged . | . . . . Bothacking | -11 -10 -10 -9 ------------ Run | Yrd Mat Min Mat Used RIF Installer . | . . . . Robots Hacked . | . . . . Non-combat . | . . . . Combat . | . . . . Robot Hacks Applied . | . . . . Relay Couplers Released . | . . . . Fabnet Peak Effective % . | . . . . Robots Rewired . | . . . . Allies Hacked . | . . . . Hacks Repelled . | . . . . Allies | -11 -10 -10 -9 -------- Run | Yrd Mat Min Mat Total Allies . | . . . . Largest Group . | . . . . Highest-Rated Group . | . . . . Highest-Rated Ally . | . . . . Total Orders . | . . . . Ally Attacks . | . . . . Total Damage . | . . . . Kills . | . . . . Allies Corrupted . | . . . . Allies Melted . | . . . . Intel | -11 -10 -10 -9 ------- Run | Yrd Mat Min Mat Robot Analysis Total 1 | . 1 . . Derelict Logs Recovered . | . . . . Drone Launches . | . . . . Drone Recoveries . | . . . . Exploration | -11 -10 -10 -9 ------------- Run | Yrd Mat Min Mat Turns Passed 1281 | 140 652 229 260 Spaces Moved 784 | 88 422 149 125 Core 41 | 15 . . 26 Treads . | . . . . Legs 171 | . . 72 99 Wheels 572 | 73 422 77 . Hover . | . . . . Flight . | . . . . Fastest Speed 50 | 50 100 100 50 Average Speed 102 | 89 100 110 111 Slowest Speed 250 | 100 100 190 250 Overloaded Moves . | . . . . Propulsion Burnouts . | . . . . Robots Hopped . | . . . . Cave-ins Triggered . | . . . . Exploration Rate (%) 27 | 5 59 33 12 Regions Visited 3 Branch Regions 1 Pre-discovered Areas . | . . . . Known Exits Taken . | . . . . Unknown Exits Taken 3 | 1 1 1 . Scrap Searched 1 | . . 1 . Spaces Dug . | . . . . Terrain Destroyed 1 | . . . 1 Melee . | . . . . Projectile 1 | . . . 1 AOE . | . . . . Terrain Rammed . | . . . . Walls Destroyed . | . . . . Machines Disabled . | . . . . Actions | -11 -10 -10 -9 --------- Run | Yrd Mat Min Mat Total 1095 | 130 563 176 226 Wait 166 | 11 71 1 83 Move 781 | 87 421 148 125 Hop . | . . . . Pick Up 23 | 9 9 3 2 Fast Attach 1 | . . 1 . Attach 20 | 10 5 2 3 Detach 5 | 1 3 . 1 Swap 4 | . 3 1 . Drop 11 | 2 5 2 2 Fire 57 | 10 41 2 4 Melee 26 | . 5 16 5 Ram 1 | . . . 1 Kick . | . . . . Crush . | . . . . Escape Stasis . | . . . . Rewire . | . . . . Trap . | . . . . Miscellaneous . | . . . . Route ------- -11/Scrapyard -10/Materials (discovered 2 exits: [*Mat] / *Min) -10/Mines -9/Materials History --------- Turn | Location | Event 30 | -11/Scrapyard | Discovered new exit (range 16) 141 | -11/Scrapyard | Entered Materials 499 | -10/Materials | Build established: Scavenger-Mutant 532 | -10/Materials | Discovered new exit (range 11) 726 | -10/Materials | Discovered new exit (range 15) 793 | -10/Materials | Entered Mines 982 | -10/Mines | Discovered new exit (range 9) 992 | -10/Mines | Found the Drone Emporium 1012 | -10/Mines | Found Prototype Device 1022 | -10/Mines | Entered Materials 1022 | -9/Materials | Evolved 2 slots: Utility x2 1255 | -9/Materials | Core integrity fell below 50% 1273 | -9/Materials | Core integrity fell below 20% 1282 | -9/Materials | Destroyed by G-34 Mercenary with Small Laser Last Messages --------------- Aluminum Leg severed. Mining Laser destroyed. Shield Generator destroyed. Ion Engine destroyed. R-06 Scavenger collects Aluminum Leg. L-31 Rogue destroyed. R-06 Scavenger collects Aluminum Leg. To regain energy, simply wait via the mouse wheel, '.', or KP5. Also make sure your per-turn energy generation is a net positive, and consider deactivating power-draining parts if not. Dropped Utility Shielding. Acquired Utility Shielding. Discarded Transport Network Coupler. Mining Claw destroyed. ECM Suite destroyed. Med. Matter Pod destroyed. U-05 Engineer builds a Wall. Slammed into G-34 Mercenary. Map ----- +----------------------------------------------------+ | | | | | | | | | | | | | | | | | | | | | | | | | | | | | | | | | | | | | | | ??????????????????###############????????????????? | | ????????#####?????# #????????????????? | | ?######## #????# #????????????????? | | ?# # #????# #????????????????? | | ?# # ###??# #????????????????? | | ?# # + #??# g #????????????????? | | ?# # # #??# g@g #????????????????? | | ?# # # ##########g#######????????????????? | | ?# # # u + ??????????????????? | | #####+######## ###???????????????????? | | "" #?????????????????????? | | ##### T" #?????????????????????? | | ????# """ "" w#?????????????????????? | | #???# """ ????????????????????? | | #???#### """ ???????????????????? | | #??????# """ ??????????????????? | | #??????+ """ ?????????????????? | | #??????# """ """ ?????????????????? | | #????? # """ ????????????????? | | #??????# """ ###+#???????????????? | | #? ????# ########+####???????????????????? | | ???????# #??????? ??????????????????????? | | ???????# """ #??????? ??????????????????????? | | ???????# """ #???????????????????????????????? | | ???????# """ #???????????????????????????????? | | ???????# ?? #???????????????????????????????? | | ??????? ???? #???????????????????????????????? | | ???????? ?????????????????????????????????????? | | ???????? ?????????????????????????????????????? | | ????????# #??????????????????????????????????????? | | ?????????????????????????????????????????????????? | +----------------------------------------------------+ Best States ------------- Heat Dissipation 35 Energy Generation 14 Energy Capacity 250 Matter Stores 400 Matter Capacity 400 Sight Range 16 Terrain Scan Range 16 Terrain Scan Density 10 ECM Strength 1 Resistance: KI 20 Resistance: TH 20 Resistance: EX 20 Resistance: EM 20 Resistance: I 20 Resistance: S 20 Resistance: P 20 Evasion (%) 55 Offensive Hacking 10 Item Schematics ----------------- None Robot Schematics ------------------ None Fabricated ------------ Nothing Alien Tech Used ----------------- None Achievements -------------- Loot Pinata Uninvited Guest Challenges ------------ None Game ------ Seed RagnarokWarpProtection Manual? 0 Play Time 00:49:50 Cumulative 1.3 hours Start 2024.12.05 @ 11:28:50 End 2024.12.05 @ 19:26:23 Sessions 2 Manual Loads 0 Difficulty Adventurer Special Mode None Game No. 2 Rogue 0 Adventurer 2 Explorer 0 Win Type - Total 0 Types 0/0/0/0/0/0/0/0/0 Lore% 0 Gallery% 2 Achievement% 1 Wizard Run 0 Options --------- Layout 1 ASCII 0 Keyboard 1 Movement Mouse Keybinds 0 Fullscreen 2 Font 24/Smallcaps Map View 50x35 Zoom Use 39% Tactical HUD 0 Map Filters NONE Filters NONE Steam X RUN: 2c52defd-8c85-44cc-b65a-bd6ecde29872